{"text_format":"1","workbook":"xlsx","n_sheets":1,"sheets":["독서후기"],"not_rendered":{"charts":0,"images":0,"macros":1,"external_links":0,"defined_names":0,"comments":0,"pivot_tables":0},"unopened":[],"bounds":{"document_bytes":16777216,"sheet_cells":100000,"rows_first":2000,"rows_last":500,"rows_between":2000,"halvings":0,"cell_chars":16384,"cell_head_chars":4096},"cells_cut":0,"cells_raw":0,"read":"whole","date_system":"1900"}

{"sheet":"독서후기","index":0,"n_rows":101,"n_cols":4,"rows_kept":101,"cut":false,"hidden":false,"merged":[]}
["도서명","독서 후기","피드백 분류","피드백 정량화"]
["Why? 인체과학","초등 4학년 아이가 6학년 동생과 함께 보는데, 학년에 상관없이 즐길 수 있는 책이라 그림이 자세하고 설명이 친근해서 어려운 의학 용어도 자연스럽게 익히게 됩니다. 강력 추천합니다.",{"$f":"gpt(\"이 독서 후기를 읽고, 고객의 감성분석을 하자. 출력 형식은 '긍정'과 '부정' 중 하나의 단어를 출력한다.\",B2)","v":"긍정"},{"$f":"gpt(_xlfn._LONGTEXT(\"당신은 도서 후기 감성 분석 및 만족도 정량화 전문가입니다.\n\n아래에 여러 개의 도서 후기가 주어집니다. 각 후기를 독립적으로 분석하여 다음 작업을 수행하세요.\n\n작업:\n1. 각 후기를 [긍정] 또는 [부정]으로 분류합니다.\n2. 각 후기를 1~10점 척도로 정량화합니다.\n3. 점수는 후기 작성자의 전반적인 만족도, 추천 의사, 학습 효과, 불만 강도를 종합해 판단합니다.\n\n점수 기준:\n- 10점: 매우 강한 만족, 강력 추천, 뚜렷한 학습 효과나 성적\",\" 향상이 언급됨\n- 9점: 매우 만족, 장점이 구체적이고 추천 의사가 강함\n- 8점: 전반적으로 만족, 장점이 분명함\n- 7점: 대체로 긍정적이나 일부 제한점이 있음\n- 6점: 약한 긍정, 무난하거나 기본 용도로는 적합함\n- 5점: 장점과 단점이 비슷하나 아쉬움이 더 큼\n- 4점: 부정적 평가가 뚜렷하고 추천이 제한적임\n- 3점: 실망감이 크고 학습 효과나 구성 문제가 분명함\n- 2점: 매우 불만족, 후회나 비추천 표현이 강함\n- 1점: 극단적 불만, \",\"효과 없음·무용지물·절대 비추·환불 등 강한 부정 표현이 있음\n\n주의사항:\n- 긍정 후기는 일반적으로 6~10점, 부정 후기는 1~5점으로 평가하세요.\n- 단, 장단점이 혼재된 후기는 최종 만족도와 추천 가능성을 기준으로 판단하세요.\n- “좋지만”, “아쉽다”, “부족하다” 같은 표현이 있어도 전체적으로 추천한다면 긍정으로 분류할 수 있습니다.\n- “기본기용으로는 좋지만 상위권에는 부족하다”처럼 용도가 제한된 경우에는 6~7점 수준으로 평가하세요.\n- \",\"“후회”, “비추천”, “환불”, “무용지물”, “실망” 같은 표현은 낮은 점수에 강하게 반영하세요.\n\n출력은 반드시 점수에 해당하는 숫자만 출력하세요.\n\n입력:\"), B2)","v":"10"}]
["Why? 인체과학","Why 시리즈 전권을 구매 중인데 인체과학 편은 특히 그림이 자세하고 캐릭터가 친근해서 아이가 반복해서 보고, 학교 과학 시간에 배운 내용과 자연스럽게 연결지어 설명해주니 이해도가 정말 높아졌어요.",{"$f":"gpt(\"이 독서 후기를 읽고, 고객의 감성분석을 하자. 출력 형식은 '긍정'과 '부정' 중 하나의 단어를 출력한다.\",B3)","v":"긍정"},{"$f":"gpt(_xlfn._LONGTEXT(\"당신은 도서 후기 감성 분석 및 만족도 정량화 전문가입니다.\n\n아래에 여러 개의 도서 후기가 주어집니다. 각 후기를 독립적으로 분석하여 다음 작업을 수행하세요.\n\n작업:\n1. 각 후기를 [긍정] 또는 [부정]으로 분류합니다.\n2. 각 후기를 1~10점 척도로 정량화합니다.\n3. 점수는 후기 작성자의 전반적인 만족도, 추천 의사, 학습 효과, 불만 강도를 종합해 판단합니다.\n\n점수 기준:\n- 10점: 매우 강한 만족, 강력 추천, 뚜렷한 학습 효과나 성적\",\" 향상이 언급됨\n- 9점: 매우 만족, 장점이 구체적이고 추천 의사가 강함\n- 8점: 전반적으로 만족, 장점이 분명함\n- 7점: 대체로 긍정적이나 일부 제한점이 있음\n- 6점: 약한 긍정, 무난하거나 기본 용도로는 적합함\n- 5점: 장점과 단점이 비슷하나 아쉬움이 더 큼\n- 4점: 부정적 평가가 뚜렷하고 추천이 제한적임\n- 3점: 실망감이 크고 학습 효과나 구성 문제가 분명함\n- 2점: 매우 불만족, 후회나 비추천 표현이 강함\n- 1점: 극단적 불만, \",\"효과 없음·무용지물·절대 비추·환불 등 강한 부정 표현이 있음\n\n주의사항:\n- 긍정 후기는 일반적으로 6~10점, 부정 후기는 1~5점으로 평가하세요.\n- 단, 장단점이 혼재된 후기는 최종 만족도와 추천 가능성을 기준으로 판단하세요.\n- “좋지만”, “아쉽다”, “부족하다” 같은 표현이 있어도 전체적으로 추천한다면 긍정으로 분류할 수 있습니다.\n- “기본기용으로는 좋지만 상위권에는 부족하다”처럼 용도가 제한된 경우에는 6~7점 수준으로 평가하세요.\n- \",\"“후회”, “비추천”, “환불”, “무용지물”, “실망” 같은 표현은 낮은 점수에 강하게 반영하세요.\n\n출력은 반드시 점수에 해당하는 숫자만 출력하세요.\n\n입력:\"), B3)","v":"10"}]
["큐브수학 초등 5-1","수학 학원 다니지 않고 이 책 한 권으로 정리합니다. 학교에서 배운 내용을 복습하기에 적합하고, 한 단원당 분량이 적절해서 아이가 집중력을 잃지 않고 끝까지 풀 수 있어 만족합니다.",{"$f":"gpt(\"이 독서 후기를 읽고, 고객의 감성분석을 하자. 출력 형식은 '긍정'과 '부정' 중 하나의 단어를 출력한다.\",B4)","v":"긍정"},{"$f":"gpt(_xlfn._LONGTEXT(\"당신은 도서 후기 감성 분석 및 만족도 정량화 전문가입니다.\n\n아래에 여러 개의 도서 후기가 주어집니다. 각 후기를 독립적으로 분석하여 다음 작업을 수행하세요.\n\n작업:\n1. 각 후기를 [긍정] 또는 [부정]으로 분류합니다.\n2. 각 후기를 1~10점 척도로 정량화합니다.\n3. 점수는 후기 작성자의 전반적인 만족도, 추천 의사, 학습 효과, 불만 강도를 종합해 판단합니다.\n\n점수 기준:\n- 10점: 매우 강한 만족, 강력 추천, 뚜렷한 학습 효과나 성적\",\" 향상이 언급됨\n- 9점: 매우 만족, 장점이 구체적이고 추천 의사가 강함\n- 8점: 전반적으로 만족, 장점이 분명함\n- 7점: 대체로 긍정적이나 일부 제한점이 있음\n- 6점: 약한 긍정, 무난하거나 기본 용도로는 적합함\n- 5점: 장점과 단점이 비슷하나 아쉬움이 더 큼\n- 4점: 부정적 평가가 뚜렷하고 추천이 제한적임\n- 3점: 실망감이 크고 학습 효과나 구성 문제가 분명함\n- 2점: 매우 불만족, 후회나 비추천 표현이 강함\n- 1점: 극단적 불만, \",\"효과 없음·무용지물·절대 비추·환불 등 강한 부정 표현이 있음\n\n주의사항:\n- 긍정 후기는 일반적으로 6~10점, 부정 후기는 1~5점으로 평가하세요.\n- 단, 장단점이 혼재된 후기는 최종 만족도와 추천 가능성을 기준으로 판단하세요.\n- “좋지만”, “아쉽다”, “부족하다” 같은 표현이 있어도 전체적으로 추천한다면 긍정으로 분류할 수 있습니다.\n- “기본기용으로는 좋지만 상위권에는 부족하다”처럼 용도가 제한된 경우에는 6~7점 수준으로 평가하세요.\n- \",\"“후회”, “비추천”, “환불”, “무용지물”, “실망” 같은 표현은 낮은 점수에 강하게 반영하세요.\n\n출력은 반드시 점수에 해당하는 숫자만 출력하세요.\n\n입력:\"), B4)","v":"9"}]
["올리드 중학 영어1","기대가 컸는데 실망이 컸습니다. 단원 평가 문제 난이도가 본문 학습 내용에 비해 갑자기 너무 높게 튀고, 해설은 정작 너무 간단해서 아이가 혼자 채점하다가 결국 포기했어요. 환불 고민 중입니다.",{"$f":"gpt(\"이 독서 후기를 읽고, 고객의 감성분석을 하자. 출력 형식은 '긍정'과 '부정' 중 하나의 단어를 출력한다.\",B5)","v":"부정"},{"$f":"gpt(_xlfn._LONGTEXT(\"당신은 도서 후기 감성 분석 및 만족도 정량화 전문가입니다.\n\n아래에 여러 개의 도서 후기가 주어집니다. 각 후기를 독립적으로 분석하여 다음 작업을 수행하세요.\n\n작업:\n1. 각 후기를 [긍정] 또는 [부정]으로 분류합니다.\n2. 각 후기를 1~10점 척도로 정량화합니다.\n3. 점수는 후기 작성자의 전반적인 만족도, 추천 의사, 학습 효과, 불만 강도를 종합해 판단합니다.\n\n점수 기준:\n- 10점: 매우 강한 만족, 강력 추천, 뚜렷한 학습 효과나 성적\",\" 향상이 언급됨\n- 9점: 매우 만족, 장점이 구체적이고 추천 의사가 강함\n- 8점: 전반적으로 만족, 장점이 분명함\n- 7점: 대체로 긍정적이나 일부 제한점이 있음\n- 6점: 약한 긍정, 무난하거나 기본 용도로는 적합함\n- 5점: 장점과 단점이 비슷하나 아쉬움이 더 큼\n- 4점: 부정적 평가가 뚜렷하고 추천이 제한적임\n- 3점: 실망감이 크고 학습 효과나 구성 문제가 분명함\n- 2점: 매우 불만족, 후회나 비추천 표현이 강함\n- 1점: 극단적 불만, \",\"효과 없음·무용지물·절대 비추·환불 등 강한 부정 표현이 있음\n\n주의사항:\n- 긍정 후기는 일반적으로 6~10점, 부정 후기는 1~5점으로 평가하세요.\n- 단, 장단점이 혼재된 후기는 최종 만족도와 추천 가능성을 기준으로 판단하세요.\n- “좋지만”, “아쉽다”, “부족하다” 같은 표현이 있어도 전체적으로 추천한다면 긍정으로 분류할 수 있습니다.\n- “기본기용으로는 좋지만 상위권에는 부족하다”처럼 용도가 제한된 경우에는 6~7점 수준으로 평가하세요.\n- \",\"“후회”, “비추천”, “환불”, “무용지물”, “실망” 같은 표현은 낮은 점수에 강하게 반영하세요.\n\n출력은 반드시 점수에 해당하는 숫자만 출력하세요.\n\n입력:\"), B5)","v":"1"}]
["우공비 중등 수학 1-1","유형별 문제가 정말 다양하게 수록되어 있고 해설도 자세해서 혼자 공부하기에 적합하며, 학원 대신 자기주도 학습을 원하는 가정에 자신 있게 추천할 수 있는 검증된 참고서라고 생각합니다.",{"$f":"gpt(\"이 독서 후기를 읽고, 고객의 감성분석을 하자. 출력 형식은 '긍정'과 '부정' 중 하나의 단어를 출력한다.\",B6)","v":"긍정"},{"$f":"gpt(_xlfn._LONGTEXT(\"당신은 도서 후기 감성 분석 및 만족도 정량화 전문가입니다.\n\n아래에 여러 개의 도서 후기가 주어집니다. 각 후기를 독립적으로 분석하여 다음 작업을 수행하세요.\n\n작업:\n1. 각 후기를 [긍정] 또는 [부정]으로 분류합니다.\n2. 각 후기를 1~10점 척도로 정량화합니다.\n3. 점수는 후기 작성자의 전반적인 만족도, 추천 의사, 학습 효과, 불만 강도를 종합해 판단합니다.\n\n점수 기준:\n- 10점: 매우 강한 만족, 강력 추천, 뚜렷한 학습 효과나 성적\",\" 향상이 언급됨\n- 9점: 매우 만족, 장점이 구체적이고 추천 의사가 강함\n- 8점: 전반적으로 만족, 장점이 분명함\n- 7점: 대체로 긍정적이나 일부 제한점이 있음\n- 6점: 약한 긍정, 무난하거나 기본 용도로는 적합함\n- 5점: 장점과 단점이 비슷하나 아쉬움이 더 큼\n- 4점: 부정적 평가가 뚜렷하고 추천이 제한적임\n- 3점: 실망감이 크고 학습 효과나 구성 문제가 분명함\n- 2점: 매우 불만족, 후회나 비추천 표현이 강함\n- 1점: 극단적 불만, \",\"효과 없음·무용지물·절대 비추·환불 등 강한 부정 표현이 있음\n\n주의사항:\n- 긍정 후기는 일반적으로 6~10점, 부정 후기는 1~5점으로 평가하세요.\n- 단, 장단점이 혼재된 후기는 최종 만족도와 추천 가능성을 기준으로 판단하세요.\n- “좋지만”, “아쉽다”, “부족하다” 같은 표현이 있어도 전체적으로 추천한다면 긍정으로 분류할 수 있습니다.\n- “기본기용으로는 좋지만 상위권에는 부족하다”처럼 용도가 제한된 경우에는 6~7점 수준으로 평가하세요.\n- \",\"“후회”, “비추천”, “환불”, “무용지물”, “실망” 같은 표현은 낮은 점수에 강하게 반영하세요.\n\n출력은 반드시 점수에 해당하는 숫자만 출력하세요.\n\n입력:\"), B6)","v":"10"}]
["Why? 인체과학","유아용 학습 만화 수준입니다. 인체과학이라는 제목에 끌려 초등 고학년 아이용으로 샀는데, 정작 깊이 있는 내용은 거의 없고 캐릭터 개그만 가득해서 학습 효과를 전혀 기대할 수 없었습니다. 후회.",{"$f":"gpt(\"이 독서 후기를 읽고, 고객의 감성분석을 하자. 출력 형식은 '긍정'과 '부정' 중 하나의 단어를 출력한다.\",B7)","v":"부정"},{"$f":"gpt(_xlfn._LONGTEXT(\"당신은 도서 후기 감성 분석 및 만족도 정량화 전문가입니다.\n\n아래에 여러 개의 도서 후기가 주어집니다. 각 후기를 독립적으로 분석하여 다음 작업을 수행하세요.\n\n작업:\n1. 각 후기를 [긍정] 또는 [부정]으로 분류합니다.\n2. 각 후기를 1~10점 척도로 정량화합니다.\n3. 점수는 후기 작성자의 전반적인 만족도, 추천 의사, 학습 효과, 불만 강도를 종합해 판단합니다.\n\n점수 기준:\n- 10점: 매우 강한 만족, 강력 추천, 뚜렷한 학습 효과나 성적\",\" 향상이 언급됨\n- 9점: 매우 만족, 장점이 구체적이고 추천 의사가 강함\n- 8점: 전반적으로 만족, 장점이 분명함\n- 7점: 대체로 긍정적이나 일부 제한점이 있음\n- 6점: 약한 긍정, 무난하거나 기본 용도로는 적합함\n- 5점: 장점과 단점이 비슷하나 아쉬움이 더 큼\n- 4점: 부정적 평가가 뚜렷하고 추천이 제한적임\n- 3점: 실망감이 크고 학습 효과나 구성 문제가 분명함\n- 2점: 매우 불만족, 후회나 비추천 표현이 강함\n- 1점: 극단적 불만, \",\"효과 없음·무용지물·절대 비추·환불 등 강한 부정 표현이 있음\n\n주의사항:\n- 긍정 후기는 일반적으로 6~10점, 부정 후기는 1~5점으로 평가하세요.\n- 단, 장단점이 혼재된 후기는 최종 만족도와 추천 가능성을 기준으로 판단하세요.\n- “좋지만”, “아쉽다”, “부족하다” 같은 표현이 있어도 전체적으로 추천한다면 긍정으로 분류할 수 있습니다.\n- “기본기용으로는 좋지만 상위권에는 부족하다”처럼 용도가 제한된 경우에는 6~7점 수준으로 평가하세요.\n- \",\"“후회”, “비추천”, “환불”, “무용지물”, “실망” 같은 표현은 낮은 점수에 강하게 반영하세요.\n\n출력은 반드시 점수에 해당하는 숫자만 출력하세요.\n\n입력:\"), B7)","v":"2"}]
["초등 국어 문해력 어휘 4학년","초4 우리 아이가 책 읽기를 싫어해서 어휘력이 부족했는데, 매일 두 페이지씩 푸는 습관을 들이니 어휘력뿐 아니라 독해력까지 같이 좋아져서 국어 시험 점수가 눈에 띄게 올랐습니다.",{"$f":"gpt(\"이 독서 후기를 읽고, 고객의 감성분석을 하자. 출력 형식은 '긍정'과 '부정' 중 하나의 단어를 출력한다.\",B8)","v":"긍정"},{"$f":"gpt(_xlfn._LONGTEXT(\"당신은 도서 후기 감성 분석 및 만족도 정량화 전문가입니다.\n\n아래에 여러 개의 도서 후기가 주어집니다. 각 후기를 독립적으로 분석하여 다음 작업을 수행하세요.\n\n작업:\n1. 각 후기를 [긍정] 또는 [부정]으로 분류합니다.\n2. 각 후기를 1~10점 척도로 정량화합니다.\n3. 점수는 후기 작성자의 전반적인 만족도, 추천 의사, 학습 효과, 불만 강도를 종합해 판단합니다.\n\n점수 기준:\n- 10점: 매우 강한 만족, 강력 추천, 뚜렷한 학습 효과나 성적\",\" 향상이 언급됨\n- 9점: 매우 만족, 장점이 구체적이고 추천 의사가 강함\n- 8점: 전반적으로 만족, 장점이 분명함\n- 7점: 대체로 긍정적이나 일부 제한점이 있음\n- 6점: 약한 긍정, 무난하거나 기본 용도로는 적합함\n- 5점: 장점과 단점이 비슷하나 아쉬움이 더 큼\n- 4점: 부정적 평가가 뚜렷하고 추천이 제한적임\n- 3점: 실망감이 크고 학습 효과나 구성 문제가 분명함\n- 2점: 매우 불만족, 후회나 비추천 표현이 강함\n- 1점: 극단적 불만, \",\"효과 없음·무용지물·절대 비추·환불 등 강한 부정 표현이 있음\n\n주의사항:\n- 긍정 후기는 일반적으로 6~10점, 부정 후기는 1~5점으로 평가하세요.\n- 단, 장단점이 혼재된 후기는 최종 만족도와 추천 가능성을 기준으로 판단하세요.\n- “좋지만”, “아쉽다”, “부족하다” 같은 표현이 있어도 전체적으로 추천한다면 긍정으로 분류할 수 있습니다.\n- “기본기용으로는 좋지만 상위권에는 부족하다”처럼 용도가 제한된 경우에는 6~7점 수준으로 평가하세요.\n- \",\"“후회”, “비추천”, “환불”, “무용지물”, “실망” 같은 표현은 낮은 점수에 강하게 반영하세요.\n\n출력은 반드시 점수에 해당하는 숫자만 출력하세요.\n\n입력:\"), B8)","v":"10"}]
["올리드 중학 영어1","단원마다 학습 목표가 명확하게 제시되어 있어 아이가 무엇을 배우는지 스스로 인지하면서 공부할 수 있고 부모가 옆에서 봐주기에도 좋아 강력하게 추천하고 싶은 교재입니다.",{"$f":"gpt(\"이 독서 후기를 읽고, 고객의 감성분석을 하자. 출력 형식은 '긍정'과 '부정' 중 하나의 단어를 출력한다.\",B9)","v":"긍정"},{"$f":"gpt(_xlfn._LONGTEXT(\"당신은 도서 후기 감성 분석 및 만족도 정량화 전문가입니다.\n\n아래에 여러 개의 도서 후기가 주어집니다. 각 후기를 독립적으로 분석하여 다음 작업을 수행하세요.\n\n작업:\n1. 각 후기를 [긍정] 또는 [부정]으로 분류합니다.\n2. 각 후기를 1~10점 척도로 정량화합니다.\n3. 점수는 후기 작성자의 전반적인 만족도, 추천 의사, 학습 효과, 불만 강도를 종합해 판단합니다.\n\n점수 기준:\n- 10점: 매우 강한 만족, 강력 추천, 뚜렷한 학습 효과나 성적\",\" 향상이 언급됨\n- 9점: 매우 만족, 장점이 구체적이고 추천 의사가 강함\n- 8점: 전반적으로 만족, 장점이 분명함\n- 7점: 대체로 긍정적이나 일부 제한점이 있음\n- 6점: 약한 긍정, 무난하거나 기본 용도로는 적합함\n- 5점: 장점과 단점이 비슷하나 아쉬움이 더 큼\n- 4점: 부정적 평가가 뚜렷하고 추천이 제한적임\n- 3점: 실망감이 크고 학습 효과나 구성 문제가 분명함\n- 2점: 매우 불만족, 후회나 비추천 표현이 강함\n- 1점: 극단적 불만, \",\"효과 없음·무용지물·절대 비추·환불 등 강한 부정 표현이 있음\n\n주의사항:\n- 긍정 후기는 일반적으로 6~10점, 부정 후기는 1~5점으로 평가하세요.\n- 단, 장단점이 혼재된 후기는 최종 만족도와 추천 가능성을 기준으로 판단하세요.\n- “좋지만”, “아쉽다”, “부족하다” 같은 표현이 있어도 전체적으로 추천한다면 긍정으로 분류할 수 있습니다.\n- “기본기용으로는 좋지만 상위권에는 부족하다”처럼 용도가 제한된 경우에는 6~7점 수준으로 평가하세요.\n- \",\"“후회”, “비추천”, “환불”, “무용지물”, “실망” 같은 표현은 낮은 점수에 강하게 반영하세요.\n\n출력은 반드시 점수에 해당하는 숫자만 출력하세요.\n\n입력:\"), B9)","v":"10"}]
["떠먹는 수학 개념편 중1","중1 첫 학기 수학 정리용으로 구매했는데 정수와 유리수, 문자와 식, 일차방정식 등 1학기 핵심 단원을 빠짐없이 다루고 각 개념마다 일상 예시를 들어 설명해줘서 이해가 정말 쏙쏙 됩니다.",{"$f":"gpt(\"이 독서 후기를 읽고, 고객의 감성분석을 하자. 출력 형식은 '긍정'과 '부정' 중 하나의 단어를 출력한다.\",B10)","v":"긍정"},{"$f":"gpt(_xlfn._LONGTEXT(\"당신은 도서 후기 감성 분석 및 만족도 정량화 전문가입니다.\n\n아래에 여러 개의 도서 후기가 주어집니다. 각 후기를 독립적으로 분석하여 다음 작업을 수행하세요.\n\n작업:\n1. 각 후기를 [긍정] 또는 [부정]으로 분류합니다.\n2. 각 후기를 1~10점 척도로 정량화합니다.\n3. 점수는 후기 작성자의 전반적인 만족도, 추천 의사, 학습 효과, 불만 강도를 종합해 판단합니다.\n\n점수 기준:\n- 10점: 매우 강한 만족, 강력 추천, 뚜렷한 학습 효과나 성적\",\" 향상이 언급됨\n- 9점: 매우 만족, 장점이 구체적이고 추천 의사가 강함\n- 8점: 전반적으로 만족, 장점이 분명함\n- 7점: 대체로 긍정적이나 일부 제한점이 있음\n- 6점: 약한 긍정, 무난하거나 기본 용도로는 적합함\n- 5점: 장점과 단점이 비슷하나 아쉬움이 더 큼\n- 4점: 부정적 평가가 뚜렷하고 추천이 제한적임\n- 3점: 실망감이 크고 학습 효과나 구성 문제가 분명함\n- 2점: 매우 불만족, 후회나 비추천 표현이 강함\n- 1점: 극단적 불만, \",\"효과 없음·무용지물·절대 비추·환불 등 강한 부정 표현이 있음\n\n주의사항:\n- 긍정 후기는 일반적으로 6~10점, 부정 후기는 1~5점으로 평가하세요.\n- 단, 장단점이 혼재된 후기는 최종 만족도와 추천 가능성을 기준으로 판단하세요.\n- “좋지만”, “아쉽다”, “부족하다” 같은 표현이 있어도 전체적으로 추천한다면 긍정으로 분류할 수 있습니다.\n- “기본기용으로는 좋지만 상위권에는 부족하다”처럼 용도가 제한된 경우에는 6~7점 수준으로 평가하세요.\n- \",\"“후회”, “비추천”, “환불”, “무용지물”, “실망” 같은 표현은 낮은 점수에 강하게 반영하세요.\n\n출력은 반드시 점수에 해당하는 숫자만 출력하세요.\n\n입력:\"), B10)","v":"10"}]
["한국사 편지 1","기대하고 샀는데 너무 실망스러웠습니다. 편지 형식이라 좋다는 후기가 많아 구매했지만 실제로 읽어보니 문장이 길고 늘어져서 우리 아이는 1권 절반도 못 읽고 흥미를 잃었습니다. 환불 처리했어요.",{"$f":"gpt(\"이 독서 후기를 읽고, 고객의 감성분석을 하자. 출력 형식은 '긍정'과 '부정' 중 하나의 단어를 출력한다.\",B11)","v":"부정"},{"$f":"gpt(_xlfn._LONGTEXT(\"당신은 도서 후기 감성 분석 및 만족도 정량화 전문가입니다.\n\n아래에 여러 개의 도서 후기가 주어집니다. 각 후기를 독립적으로 분석하여 다음 작업을 수행하세요.\n\n작업:\n1. 각 후기를 [긍정] 또는 [부정]으로 분류합니다.\n2. 각 후기를 1~10점 척도로 정량화합니다.\n3. 점수는 후기 작성자의 전반적인 만족도, 추천 의사, 학습 효과, 불만 강도를 종합해 판단합니다.\n\n점수 기준:\n- 10점: 매우 강한 만족, 강력 추천, 뚜렷한 학습 효과나 성적\",\" 향상이 언급됨\n- 9점: 매우 만족, 장점이 구체적이고 추천 의사가 강함\n- 8점: 전반적으로 만족, 장점이 분명함\n- 7점: 대체로 긍정적이나 일부 제한점이 있음\n- 6점: 약한 긍정, 무난하거나 기본 용도로는 적합함\n- 5점: 장점과 단점이 비슷하나 아쉬움이 더 큼\n- 4점: 부정적 평가가 뚜렷하고 추천이 제한적임\n- 3점: 실망감이 크고 학습 효과나 구성 문제가 분명함\n- 2점: 매우 불만족, 후회나 비추천 표현이 강함\n- 1점: 극단적 불만, \",\"효과 없음·무용지물·절대 비추·환불 등 강한 부정 표현이 있음\n\n주의사항:\n- 긍정 후기는 일반적으로 6~10점, 부정 후기는 1~5점으로 평가하세요.\n- 단, 장단점이 혼재된 후기는 최종 만족도와 추천 가능성을 기준으로 판단하세요.\n- “좋지만”, “아쉽다”, “부족하다” 같은 표현이 있어도 전체적으로 추천한다면 긍정으로 분류할 수 있습니다.\n- “기본기용으로는 좋지만 상위권에는 부족하다”처럼 용도가 제한된 경우에는 6~7점 수준으로 평가하세요.\n- \",\"“후회”, “비추천”, “환불”, “무용지물”, “실망” 같은 표현은 낮은 점수에 강하게 반영하세요.\n\n출력은 반드시 점수에 해당하는 숫자만 출력하세요.\n\n입력:\"), B11)","v":"1"}]
["베이직 중학영어 문법","개념 설명, 예문, 연습 문제, 단원 평가 순서로 학습 흐름이 자연스럽게 이어지도록 구성되어 있어 학원 보내지 않고 이 책 한 권만으로도 충분히 따라갈 수 있어요."]
["떠먹는 수학 개념편 중1","친절한 설명은 좋지만 그만큼 분량이 늘어나서 진도가 빠른 학생에게는 다소 답답하게 느껴질 수 있습니다. 빠르게 개념만 훑고 싶은 학생에게는 적합하지 않은 책이라고 생각합니다."]
["떠먹는 수학 개념편 중1","쉽지만 깊이가 있는 책입니다. 기본기를 탄탄하게 잡고 싶은 학생, 자신감이 없어 시작이 어려운 학생, 학원 대신 자기주도 학습을 원하는 학생 모두에게 자신 있게 추천하고 싶은 교재입니다."]
["베이직 중학영어 문법","중2 아이가 영문법을 처음 시작하는데 be동사부터 시제, 조동사까지 단원이 잘게 나뉘어 있어 매일 한 단원씩 부담 없이 풀 수 있고 학습 진도 확인도 편해서 좋습니다."]
["초등 국어 문해력 어휘 4학년","고학년 어휘로 넘어가기 전 4학년 어휘를 정리하는 데 가장 적합한 교재입니다. 가성비도 좋고 구성도 알차서 주변 학부모들에게 자신 있게 추천하고 있는 책이라고 말씀드리고 싶습니다."]
["초등 국어 문해력 어휘 4학년","재미있는 단어 게임과 퍼즐 형식의 활동이 곳곳에 배치되어 있어서 아이가 학습이라기보다 놀이처럼 즐겁게 풀어 나가고, 결과적으로 어휘력과 사고력 모두 향상되는 것이 눈에 보입니다."]
["떠먹는 수학 개념편 중1","개념을 풀어서 설명해주는 방식이 정말 인상적입니다. 수학을 무서워하던 우리 아이가 이 책을 풀면서부터 흥미를 가지기 시작했고, 스스로 문제를 풀어보려는 자세까지 생긴 점이 가장 큰 수확입니다."]
["Why? 인체과학","삽화의 디테일이 살아 있고 인체 구조를 다양한 각도에서 보여줘서 아이가 시각적으로 인체를 이해하기에 정말 좋고, 단순 흥미 위주의 학습 만화와는 차원이 다른 책이라고 생각합니다."]
["Why? 인체과학","그림은 좋은데 종이 질이 생각보다 가벼워서 아이가 자주 보다 보니 모서리가 금방 닳고 페이지가 떨어지는 경우가 생겨, 가격 대비 내구성이 조금 아쉽다는 느낌을 받았습니다."]
["큐브수학 초등 5-1","기본, 실력, 최상위로 단계별 구성이 되어 있어 아이 수준에 맞게 선택할 수 있는 점이 가장 큰 장점이라고 생각합니다. 우리 아이는 실력편을 풀고 있는데 난이도가 딱 적절합니다."]
["떠먹는 수학 개념편 중1","기본 개념을 처음 익히는 학생에게는 그야말로 최고의 교재라고 생각합니다. 단원 구성과 분량 모두 적절해서 학기 초부터 차근차근 풀어 나가면 시험 직전에 굳이 따로 정리할 필요가 없습니다."]
["한국사 편지 1","이야기 흐름은 좋지만 일부 시대 서술이 너무 간략해서 시험 대비용으로 활용하려는 가정에는 다소 부족할 수 있습니다. 흥미 유발에는 좋으나 학습서로 보면 정보량이 아쉬운 편이에요."]
["한국사 편지 1","딸에게 보내는 편지 형식이라 문체가 친근하고, 역사적 사건이 머릿속에 자연스럽게 그려져서 단순 연표 암기가 아니라 인물과 상황 중심으로 한국사를 이해할 수 있어서 정말 좋습니다."]
["하이탑 고등 물리학Ⅰ","물리는 이 책 한 권으로 충분하다는 말이 빈말이 아니네요. 개념 설명이 교과서보다 훨씬 풍부하고 심화 문제까지 다루고 있어서 상위권 학생에게 정말 자신 있게 추천할 수 있습니다."]
["한국사 편지 1","편지글 형식의 친근한 문체와 함께 일러스트가 시대 분위기를 잘 살려서 아이가 자연스럽게 역사에 흥미를 갖게 되었고, 다른 한국사 책도 스스로 찾아 읽기 시작했어요."]
["큐브수학 초등 5-1","큐브 시리즈를 신뢰해서 매 학기 구매하고 있는데 이번 5-1도 역시 만족스럽습니다. 단원 구성이 학교 진도와 잘 맞고 시험 직전 빠르게 정리하기에도 좋은 든든한 참고서라고 평가합니다."]
["일등급 수학 고2","고2 수학 1등급 유지를 위해 사용 중인데 학교 내신 대비뿐 아니라 모의고사 준비에도 정말 좋습니다. 변별력 있는 문제로 구성되어 있어서 사고력과 응용력을 동시에 길러주는 교재입니다."]
["일등급 수학 고2","해설지가 단계별로 친절하게 풀이를 보여주기 때문에 자기주도 학습이 충분히 가능하고, 막힐 때 참고하기에도 좋아서 오답 노트를 만들기에도 최적의 교재라고 자신 있게 추천할 수 있습니다."]
["하이탑 고등 물리학Ⅰ","처음에는 분량과 깊이에 압도되어 어렵게 느껴졌지만 계속 읽다 보니 점점 이해도가 올라가고, 한 번 정독한 후로는 다른 어떤 참고서보다 신뢰가 가는 든든한 교재가 되었습니다."]
["일등급 수학 고2","변별력 있는 문제가 많은 건 좋은데 기본 개념이 잡힌 학생에게만 추천할 수 있고, 처음 수학을 공부하는 학생에게는 너무 어려워서 오히려 자신감을 떨어뜨릴 수 있는 점이 아쉽습니다."]
["한국사 편지 1","10권 세트로 구매해서 1권부터 차근차근 읽으니 한국사의 큰 흐름이 머릿속에 정리되고, 단순 암기가 아닌 사건의 인과관계와 인물의 입장에서 역사를 바라보게 도와주는 정말 좋은 책입니다."]
["올리드 중학 영어1","구성은 깔끔한데 심화 문제가 부족해서 상위권 아이에게는 변별력 있는 연습이 어려운 편입니다. 기본기 정리용으로는 좋지만 1등급 노리는 학생에게는 보조 교재가 반드시 필요합니다."]
["Why? 인체과학","내용은 좋지만 학습 만화 특성상 일부 페이지는 개그 요소가 과해서 정작 과학 정보 비중이 줄어드는 느낌이 들 때가 있고, 진지하게 공부하려는 아이에게는 산만하게 느껴질 수 있습니다."]
["초등 국어 문해력 어휘 4학년","광고에서 본 것과 실제 내용 차이가 큽니다. 4학년 수준치고 너무 쉬운 어휘 위주라 우리 아이는 한 시간 만에 한 단원을 끝내고 시시해했어요. 학년 표기를 신뢰하고 산 게 후회됩니다."]
["우공비 중등 수학 1-1","단원별 개념 정리가 깔끔하고 색상 구분이 명확해서 아이가 한눈에 핵심을 파악할 수 있고, 학원 다니지 않고 이 책 한 권으로 학교 시험 성적이 잘 나오고 있어서 강력 추천합니다."]
["떠먹는 수학 개념편 중1","그림이 많아서 지루하지 않고 스토리텔링 방식으로 개념이 전개되어 신선하게 느껴졌어요. 학원 안 다니고 이 책으로 자기주도 학습을 하고 있는데 학교 시험에서도 좋은 성적을 유지하고 있습니다."]
["Why? 인체과학","만화 형식이라 글로만 된 책은 잘 안 보던 아이가 푹 빠졌고, 즐겁게 학습하면서도 인체에 대한 호기심이 자극되어 도서관에서 다른 과학책도 찾아 읽기 시작한 점이 가장 큰 변화입니다."]
["큐브수학 초등 5-1","기본편과 실력편의 난이도 차이가 생각보다 커서 기본편을 끝낸 뒤 실력편으로 바로 넘어가면 아이가 좌절감을 느낄 수 있고, 중간 단계 교재를 따로 끼워 넣어야 하는 점이 다소 번거롭습니다."]
["초등 국어 문해력 어휘 4학년","한자어, 한자성어, 관용표현, 다의어 등을 골고루 다루고 있어서 학교 수업을 따라가는 데 도움이 매우 크고, 정답지가 친절해서 부모가 일일이 채점하지 않아도 자기주도 학습이 가능합니다."]
["일등급 수학 고2","1등급 노리는 학생에게는 사실상 필수 교재라고 생각합니다. 시간 여유가 있는 학생이 학기 초부터 꾸준히 풀어 나간다면 수능 대비까지 자연스럽게 이어지는 흐름을 만들 수 있는 좋은 책입니다."]
["베이직 중학영어 문법","한 단원이 짧고 매일 30분이면 풀 수 있는 분량이어서 학원 다니지 않고도 자기주도 학습이 충분히 가능하고 단원평가 문제도 학교 내신 유형과 비슷해 시험 대비에도 적합합니다."]
["한국사 편지 1","엄마인 저도 아이와 함께 읽으면서 다시 한 번 한국사 공부하는 기분이 들어 좋았고, 가족이 함께 읽고 대화 나눌 수 있는 책이라는 점에서 큰 만족감을 얻었습니다."]
["하이탑 고등 물리학Ⅰ","운동량과 에너지 단원의 그림 자료가 특히 풍부해서 추상적인 개념을 시각적으로 이해하는 데 큰 도움이 됐고, 이 책으로 공부한 후 내신 시험에서 1등급을 받을 수 있었습니다."]
["Why? 인체과학","처음에는 만화책이라 학습 효과가 있을까 의심했는데 의외로 과학 개념이 꼼꼼하게 들어가 있어서 놀랐고, 아이가 인체에 대한 질문을 많이 하기 시작했으며 과학 시험 점수도 좋아졌습니다."]
["베이직 중학영어 문법","예문이 너무 단순해서 실제 영어 지문에서 만나는 문장 구조와는 거리가 있는 편입니다. 문법 자체는 익히지만 독해 연결로 이어지지 않는 점이 사용하면서 좀 아쉬웠습니다."]
["우공비 중등 수학 1-1","기본기 잡기에 정말 좋은 책입니다. 우리 아이가 잘 따라오고 있고, 학교 수학 시험에서도 안정적인 점수를 유지하고 있어서 다음 학기에도 우공비 시리즈를 이어서 구매할 예정입니다."]
["우공비 중등 수학 1-1","우공비 시리즈를 신뢰하고 매번 구매하는데 이번 1-1도 정말 만족스럽습니다. 우리 아이가 수학을 처음 접하는데 차근차근 단계별로 설명이 되어 있어서 부담 없이 잘 따라가고 있어요."]
["우공비 중등 수학 1-1","중학교 수학의 입문서로 손색이 없습니다. 정수와 유리수, 일차방정식 등 1학년 1학기 핵심 내용을 빠짐없이 다루고 있고, 단원별 평가와 서술형 문제까지 있어서 학교 시험 대비에 충분합니다."]
["올리드 중학 영어1","전반적으로 무난하지만 듣기 영역 자료가 거의 없다는 점이 아쉽습니다. 요즘 내신 시험에 듣기 비중도 있는데 별도 듣기 교재를 또 구매해야 해서 비용 부담이 생기네요."]
["한국사 편지 1","역사를 마치 이야기처럼 풀어가 주어서 아이가 거부감 없이 끝까지 읽었고, 어린이 한국사 시리즈 중 가장 추천할 만큼 구성과 문체 모두 어린 독자에게 최적화된 책이라고 느꼈습니다."]
["큐브수학 초등 5-1","초5인 우리 아이에게는 너무 단순한 문제 위주라 변별력이 전혀 없었습니다. 학교 시험은 응용 위주인데 이 책으로 공부하니 정작 시험에서는 새로운 유형이 많아 점수가 떨어졌어요. 매우 실망스러웠습니다."]
["Why? 인체과학","선물용으로도 정말 좋은 책입니다. 조카 생일 선물로 줬는데 부모님이 책 내용을 보고 깜짝 놀라며 시리즈 전권을 따로 사주실 정도로 학습 만화로서의 완성도가 매우 높습니다."]
["올리드 중학 영어1","본문 해석을 한 줄씩 친절하게 풀어주고 단어 정리와 발음기호까지 꼼꼼하게 들어가 있어 영어에 자신감 없는 아이도 부담 없이 시작할 수 있는 점이 인상적이었어요."]
["초등 국어 문해력 어휘 4학년","문해력 시대에 꼭 필요한 책이라고 생각합니다. 어휘의 뜻만 단순 암기하는 것이 아니라 문맥 속에서 의미를 파악하는 훈련이 자연스럽게 되어 활용 능력까지 함께 길러주는 점이 정말 좋아요."]
["베이직 중학영어 문법","글씨 크기와 간격이 적당하고 디자인도 깔끔해서 오래 보아도 눈이 피로하지 않고, 아이가 책을 펴는 것 자체에 부담을 느끼지 않아 꾸준히 학습할 수 있어 만족합니다."]
["한국사 편지 1","전체적으로 무난한데 편지글 특성상 사건의 객관적 정리보다 작가의 주관적 시선이 강해서 시험에 나오는 핵심 사실을 추려서 외우기에는 다른 요약 교재가 별도로 필요할 것 같아요."]
["초등 국어 문해력 어휘 4학년","어휘량은 적절한데 단원별 반복 학습 장치가 부족해서 한 번 풀고 나면 잊어버리기 쉬운 편입니다. 별도의 복습 노트를 만들어 줘야 효과가 유지되는 점이 약간 번거롭게 느껴졌습니다."]
["우공비 중등 수학 1-1","내용은 좋지만 답지 풀이가 조금 더 자세하면 좋겠다는 생각이 듭니다. 부모도 헷갈리는 풀이가 가끔 있어서 답지만으로는 아이에게 설명해주기 어려운 경우가 종종 발생했습니다."]
["하이탑 고등 물리학Ⅰ","고1 때부터 사용했는데 챕터별 핵심 정리와 다양한 유형의 문제가 잘 수록되어 있어서 학교 시험 준비뿐 아니라 수능 모의고사 준비 시점에도 다시 꺼내 볼 만큼 활용도가 높았어요."]
["우공비 중등 수학 1-1","중1 첫 수학 참고서로 선택했는데 학교 진도에 잘 맞춰 풀기 좋고, 개념 정리 페이지가 매 단원마다 친절하게 있어서 시험 전에 빠르게 훑어보기에도 정말 효율적인 구성입니다."]
["하이탑 고등 물리학Ⅰ","수능 대비용으로 사용 중인데 단원별 정리가 매우 깔끔해서 복습할 때 효율이 정말 좋고, 모르는 개념을 찾아볼 때도 색인이 잘 되어 있어 사전처럼 활용하기에도 편리합니다."]
["올리드 중학 영어1","삽화와 디자인이 친근해서 영어를 싫어하던 아이도 책을 펼치는 것 자체에 거부감이 줄었고 매일 정해진 분량씩 꾸준히 풀게 되어 학습 습관 형성에 큰 도움을 받았습니다."]
["올리드 중학 영어1","예습용으로 활용하기에 최적의 교재라고 생각합니다. 학원 수업 전에 미리 풀어 가면 수업 이해도가 훨씬 높아지고, 복습용으로도 다시 펼쳐볼 만큼 구성이 알찬 책이라 만족합니다."]
["우공비 중등 수학 1-1","기본 개념 정리는 훌륭한데 심화 문제 비중이 부족해서 상위권을 노리는 학생에게는 부족한 편입니다. 학교 시험에서 변별력 문제가 자주 나오는 경우 다른 심화 교재 병행이 필수입니다."]
["일등급 수학 고2","수학 상위권 학생들 사이에서 유명한 책인데 직접 풀어보니 명불허전이라는 표현이 딱 맞습니다. 단순 유형 반복이 아니라 사고력을 요구하는 문제가 많아서 풀고 나면 한 단계 성장한 느낌입니다."]
["베이직 중학영어 문법","표지만 그럴듯하고 실제 내용은 시중 다른 기초 문법책과 차이가 거의 없습니다. 단원 평가 해설이 정답만 적혀 있고 풀이 과정이 없어 혼자 공부하는 학생에게는 사실상 무용지물입니다. 절대 비추."]
["떠먹는 수학 개념편 중1","이름이 무색합니다. 떠먹여 준다더니 정작 어려운 단원은 설명을 대충 넘어가고 연습 문제 난이도만 갑자기 올라가서 아이가 좌절했어요. 광고 문구만 보고 산 게 정말 후회되는 책입니다."]
["Why? 인체과학","우리 집은 거실에 두고 가족 모두가 펼쳐 보는데, 자녀의 과학 흥미 자극에 정말 큰 도움이 되고 부모가 먼저 읽고 설명해주기에도 좋아서 가족 독서 시간에 활용하고 있습니다."]
["큐브수학 초등 5-1","초5 수학이 갑자기 어려워진 느낌이라 큐브로 정리해줬는데 분수 사칙연산 부분이 특히 잘 정리되어 있고, 단원평가도 학교 시험과 비슷한 난이도여서 실제 시험 대비에 큰 도움이 됐습니다."]
["하이탑 고등 물리학Ⅰ","전 과목 통틀어 가장 만족스러운 참고서입니다. 개념 설명의 깊이와 문제의 질, 해설의 정확성 모두 훌륭해서 학기 초부터 꾸준히 공부하기에 최적의 교재라고 강력하게 추천합니다."]
["올리드 중학 영어1","중1 아이가 학원 안 다니고 이 책 한 권으로 영어 공부 중인데 단원 구성이 깔끔하고 학교 진도와도 잘 맞아서 학습 흐름이 끊기지 않아 매우 만족합니다."]
["큐브수학 초등 5-1","아이가 즐겁게 풀어 나갑니다. 단계가 잘 나뉘어 있어서 쉬운 문제부터 차근차근 풀다 보면 어느새 응용 문제까지 도전할 수 있게 되는 자연스러운 학습 흐름이 정말 잘 설계된 교재입니다."]
["초등 국어 문해력 어휘 4학년","내용은 알찬데 정답지의 풀이 설명이 일부 단원에서 너무 짧아서 아이가 왜 틀렸는지 스스로 이해하기 어려운 경우가 종종 있어, 결국 부모가 옆에서 다시 설명해줘야 하는 점이 아쉽습니다."]
["큐브수학 초등 5-1","교과서 개념을 한 번 더 정리할 수 있어서 정말 좋습니다. 그림과 설명이 친근하고 아이가 부담스러워하지 않고 잘 풀어서 매일 학습 습관 들이기에 안성맞춤인 교재라고 자신 있게 추천합니다."]
["초등 국어 문해력 어휘 4학년","단어를 단순히 외우게 하는 일반 어휘책과 달리 이 책은 문장 속에서 어휘를 익히게 해줘서 실제 글쓰기에까지 활용 가능하고, 아이의 글짓기 실력도 같이 늘어서 일석이조였습니다."]
["일등급 수학 고2","1등급이라는 이름값에 비해 일부 문제는 그냥 꼬아 놓기만 한 느낌이라 실제 모의고사 출제 경향과 동떨어져 있습니다. 시간만 잡아먹고 점수 향상은 미미해서 다른 책으로 갈아탔습니다. 비추천."]
["하이탑 고등 물리학Ⅰ","그림과 도식이 함께 설명되어 있어 물리 특유의 추상적인 개념이 한결 쉽게 이해되고, 학교 내신 대비뿐 아니라 과학탐구 영역 전체 기초를 잡는 데 정말 큰 도움이 되었어요."]
["떠먹는 수학 개념편 중1","타 참고서가 개념을 던지듯이 설명한다면 이 책은 개념을 천천히 떠먹여 주는 듯한 느낌입니다. 단계별로 왜 그렇게 풀어야 하는지 친절하게 설명해줘서 이름값을 제대로 하는 교재라고 느꼈어요."]
["일등급 수학 고2","기본 개념을 넘어 응용과 심화까지 단계별로 풀 수 있게 구성되어 있어서 정말 만족스럽습니다. 한 학기 동안 이 책을 끝내고 나면 어떤 시험에서도 흔들리지 않는 실력을 갖출 수 있어요."]
["떠먹는 수학 개념편 중1","개념 설명은 정말 좋은데 심화 문제 풀이는 별도의 문제집이 필요할 듯합니다. 이 책 한 권으로 개념 정리를 끝낸 후 반드시 다른 문제집과 병행해야 하는 점이 조금 번거롭게 느껴졌어요."]
["우공비 중등 수학 1-1","예제 문제가 풍부해서 같은 유형을 반복 학습할 수 있고, 유형별로 문제가 잘 분류되어 있어서 부족한 부분만 골라서 집중적으로 연습하기에도 좋은 친절한 구성이 인상적인 교재입니다."]
["하이탑 고등 물리학Ⅰ","내신 1등급 노리고 샀는데 학교 시험 출제 경향과는 결이 너무 달랐습니다. 책은 수능형 심화 위주라 정작 학교 시험에 자주 나오는 기본 유형 연습이 부족해서 점수가 오히려 떨어졌어요. 후회 큽니다."]
["하이탑 고등 물리학Ⅰ","분량이 너무 많아서 시험 직전에 단기간 정리용으로는 부적합합니다. 시간 여유 있는 학생에게나 추천할 수 있고, 늦게 시작한 수험생에게는 오히려 부담만 키울 수 있는 책입니다."]
["일등급 수학 고2","문제 질은 훌륭한데 분량이 만만치 않아서 시간 여유가 없는 학생에게는 부담스러울 수 있습니다. 단기간에 끝낼 수 있는 교재는 아니라는 점을 구매 전에 꼭 고려해야 할 것 같아요."]
["큐브수학 초등 5-1","내용은 좋은데 최상위 문제는 학부모도 풀이가 어려운 편이라 아이가 막힐 때 같이 풀어줘야 하는 부담이 있습니다. 부모의 수학 실력이 받쳐주지 않으면 자기주도 학습이 어려울 수 있어요."]
["올리드 중학 영어1","문법과 어휘, 독해까지 한 권에 종합적으로 정리되어 있어 여러 권 살 필요 없이 이 책 하나로 전 영역을 다질 수 있다는 점이 가장 큰 장점이라고 생각합니다."]
["초등 국어 문해력 어휘 4학년","교과서에 나오는 어휘 위주로 구성되어 있어 학교 공부에 직접적인 도움이 되고, 매일 학습할 수 있도록 분량이 적절하게 나뉘어 있어 아이가 부담 없이 꾸준히 풀어 나갈 수 있어요."]
["떠먹는 수학 개념편 중1","수학을 어려워하는 아이에게 정말 추천합니다. 개념 설명이 친절하고 단계별로 풀이가 제시되어 있어서 막히는 부분이 거의 없고, 매일 정해진 분량씩 꾸준히 풀어 나갈 수 있어서 학습 습관까지 형성됩니다."]
["베이직 중학영어 문법","그림과 예문이 친근해서 아이들이 문법에 대한 거부감 없이 자연스럽게 접근할 수 있고, 학교 영어 시험 점수도 눈에 띄게 올라서 아이 본인이 가장 만족하고 있어요."]
["우공비 중등 수학 1-1","기대 이하였습니다. 광고에서는 자기주도 학습 최적이라더니 실제로는 풀이 과정 생략이 너무 많고, 아이 혼자 풀다가 막혀서 결국 학원을 다시 알아보게 됐어요. 비용과 시간 모두 낭비였습니다."]
["일등급 수학 고2","해설지의 친절함이 다른 심화서와 차별화되는 가장 큰 강점입니다. 어려운 문제를 풀고 나서 해설을 읽으면 출제자의 의도까지 보이기 시작해서 사고의 폭이 넓어지는 것이 느껴지는 책이에요."]
["베이직 중학영어 문법","단원별 핵심 문법이 표로 깔끔하게 정리되어 있어 시험 직전에 빠르게 훑어보기에 정말 좋고, 아이가 헷갈리는 부분만 골라서 다시 볼 수 있어 효율적인 학습이 가능합니다."]
["베이직 중학영어 문법","기초용으로는 무난한데 응용 문제 비중이 너무 적은 편입니다. 학교 시험에서 응용 유형이 자주 출제되는 학교라면 이 책만으로는 부족하고 다른 문제집을 병행해야 할 것 같아요."]
["하이탑 고등 물리학Ⅰ","내용은 훌륭한데 일부 단원의 문제 해설이 너무 간단해서 풀이 과정을 더 친절하게 보여줬으면 좋겠습니다. 혼자 공부하는 학생은 막히는 부분에서 한참 헤맬 가능성이 큽니다."]
["한국사 편지 1","초등 4학년 우리 아이가 사회 시간에 한국사가 어렵다고 해서 보조 교재로 구입했는데 일주일도 안 돼서 1권을 다 읽고 2권을 사달라고 조를 정도로 푹 빠졌습니다."]
["한국사 편지 1","초등 3학년 아이가 한국사에 관심을 갖기 시작한 계기가 된 책으로, 글밥이 적당하고 그림이 풍부해서 처음 역사를 접하는 아이에게 입문서로 가장 추천하고 싶은 책 중 하나입니다."]
["큐브수학 초등 5-1","응용 문제까지 무리 없이 풀 수 있도록 구성되어 있어서 좋고, 답지 분리형이라 채점할 때 편리하며 아이가 직접 답을 보고 베끼는 일도 줄어들어 학습 효과가 훨씬 높아진 것 같습니다."]
["올리드 중학 영어1","학교 시험 대비용으로 정말 훌륭합니다. 단원 평가 문제가 실제 내신 유형과 매우 비슷하게 구성되어 있어 우리 아이가 이 책 풀고 나서 영어 성적이 눈에 띄게 올랐어요."]
["베이직 중학영어 문법","중학 영문법을 처음 접하는 학생에게 정말 적합한 교재입니다. 너무 어렵지 않으면서도 시험에 나오는 핵심 문법은 빠짐없이 다 들어 있어서 기본기 다지기에 정말 좋다고 생각합니다."]
["일등급 수학 고2","1등급을 목표로 풀이 중인 학생에게 가장 추천하는 책입니다. 문제 난이도가 학교 시험보다 높아서 처음에는 좌절감을 느낄 수 있지만 끝까지 풀어보면 실력이 확실하게 향상되는 것을 체감합니다."]